Cogmind - Beta 13 @@@ ROGUE MODE // 2024.04.17 @ 17:54:32 Player: toydarian Result: Destroyed by G-34 Mercenary with Small Laser Performance ------------- Evolutions (0) 0 Regions Visited (2) 400 Robots Destroyed (32) 160 Value Destroyed (778) 778 Prototype IDs (0) 0 Alien Tech Used (0) 0 Bonus (0) 0 TOTAL SCORE: 1338 Bonus ------- None Cogmind --------- Core Integrity 0/250 Matter 241/300 Energy 80/250 System Corruption 1% Temperature Cool (39) Movement Core (300) Ox5 Location -10/Mines Parts ------- > --- POWER (1) -------- Ion Engine > --- PROPULSION (2) --- (None) > --- UTILITY (2) ------ Medium Storage Unit Signal Interpreter > --- WEAPON (2) ------- Medium Laser > --- INVENTORY (10) --- Light Ion Engine Structural Scanner Sensor Array Rocket Launcher Peak State ------------ > --- POWER ------------ Light Ion Engine > --- PROPULSION ------- Light Treads Light Treads > --- UTILITY ---------- Small Storage Unit Medium Storage Unit > --- WEAPON ----------- Rocket Launcher Rocket Launcher > --- INVENTORY -------- Ion Engine Medium Laser Assault Rifle [Rating: 9] Favorites ----------- Power Light Ion Engine Engine Light Ion Engine Propulsion Light Treads Treads Light Treads Utility Medium Storage Unit Storage Medium Storage Unit Processor Signal Interpreter Weapon Rocket Launcher Energy Gun Medium Laser Ballistic Gun Assault Rifle Launcher Rocket Launcher Special Weapon Mining Laser Build | -11 -10 -10 ------- Run | Yrd Mat Min Slots Evolved . | . . . Power . | . . . Propulsion . | . . . Utility . | . . . Weapon . | . . . Parts Attached 25 | 6 15 4 Power 3 | 1 1 1 Engine 3 | 1 1 1 Core . | . . . Reactor . | . . . Propulsion 4 | 2 2 . Treads 4 | 2 2 . Leg . | . . . Wheel . | . . . Hover . | . . . Flight . | . . . Utility 3 | 1 2 . Device . | . . . Storage 2 | 1 1 . Processor 1 | . 1 . Hackware . | . . . Protection . | . . . Artifact . | . . . Weapon 15 | 2 10 3 Energy Gun 2 | 1 . 1 Energy Cannon . | . . . Ballistic Gun 4 | 1 2 1 Ballistic Cannon . | . . . Launcher 8 | . 7 1 Special Weapon 1 | . 1 . Impact Weapon . | . . . Slashing Weapon . | . . . Piercing Weapon . | . . . Special Melee Weapon . | . . . Unidentified Prototypes . | . . . Parts Lost 7 | . 2 5 Power 2 | . 1 1 Propulsion 1 | . . 1 Utility . | . . . Weapon 4 | . 1 3 Highest Loss Streak 3 | . 1 3 To Critical Strikes . | . . . Average Slot Usage (%) 81 | . 83 56 Engine 11 | . 11 14 Treads 16 | . 18 . Storage 14 | . 14 14 Processor 11 | . 11 14 Ballistic Gun 8 | . 8 4 Launcher 13 | . 15 1 Special Weapon 2 | . 3 . Naked Turns . | . . . Heaviest Build 21 | 12 21 20 Greatest Support 40 | 40 40 20 Greatest Overweight (x) 6 | . 5 6 Average Overweight (x) . | . . 4 Largest Inventory Capacity 10 | 8 10 10 Average Capacity 9 | 7 9 10 Most Carried 8 | 1 8 7 Average Carried 5 | . 5 6 Final Capacity 10 | 8 10 10 Final Carried 6 | 1 6 4 Class Distribution -------------------- 100% | Mutant Dominant Class ---------------- Mutant | -10/Materials Mutant | -10/Mines Resources | -11 -10 -10 ----------- Run | Yrd Mat Min Matter Collected 933 | 260 583 90 Remotely . | . . . Salvage Created 760 | 52 600 108 Parts 55 | 1 44 10 Haulers Intercepted 2 | . 2 . Recyclers Shooed 2 | . 2 . Parts Field Recycled . | . . . Retrieved Matter . | . . . Parts Self-Destructed . | . . . Prevented . | . . . Kills | -11 -10 -10 ------- Run | Yrd Mat Min Combat Hostiles Destroyed 16 | . 12 4 Guns 1 | . 1 . AOE 15 | . 11 4 Classes Destroyed 8 | 1 7 . Worker 1 | . 1 . Builder 5 | . 4 1 Tunneler 1 | . 1 . Hauler 2 | . 2 . Recycler 3 | 1 2 . Operator 1 | . 1 . Watcher 3 | . 3 . Grunt 16 | . 12 4 Best Kill Streak 5 | 1 5 3 Combat Bots Only 2 | . 2 2 Max Kills in Single Turn 3 | 1 3 2 Gunslinging . | . . . Exploded 2 | . 2 2 Melee . | . . . Uniques/NPCs Destroyed . | . . . Combat | -11 -10 -10 -------- Run | Yrd Mat Min Hostile Shots Fired 55 | . 26 29 Missed 13 | . 7 6 Damage Taken 920 | . 540 380 Core 260 | . 200 60 Absorbed by Shields . | . . . Core Remaining (%) 100 | 100 . . Volleys Fired 73 | 7 50 16 Largest 2 | 1 2 2 Hottest 100 | 50 100 83 Shots Fired 97 | 7 69 21 Gun 56 | 7 35 14 Cannon . | . . . Launcher 37 | . 30 7 Special 4 | . 4 . Kinetic 44 | . 35 9 Thermal 16 | 7 4 5 Explosive 37 | . 30 7 Electromagnetic . | . . . Robot Hit Streak 6 | 3 5 6 Robot Miss Streak 4 | 1 3 4 Penetration Max . | . . . Secondary Targets . | . . . Shots Hit Robots 47 | 5 33 9 Core Hits 55 | 2 42 11 Critical Kills . | . . . Critical Parts Destroyed . | . . . Critical Strikes 2 | 2 . . Burn 2 | 2 . . Melee Attacks . | . . . Impact . | . . . Slashing . | . . . Piercing . | . . . Sneak Attacks . | . . . Combat Hostiles . | . . . Follow-up Attacks . | . . . Damage Inflicted 2308 | 62 1820 426 Guns 375 | 62 234 79 Cannons . | . . . Explosions 1930 | . 1583 347 Melee . | . . . Ramming 3 | . 3 . Kinetic 300 | . 234 66 Thermal 75 | 62 . 13 Explosive 1930 | . 1583 347 Electromagnetic . | . . . Impact . | . . . Slashing . | . . . Piercing . | . . . Highest Corruption 1 | . 1 1 Average Corruption 1 | . 1 1 Corruption Purged . | . . . Corruption Blocked . | . . . Effects 24 | . 23 1 Message Errors 11 | . 11 . Matter Fused 6 | . 5 1 Heat Flow Errors 1 | . 1 . Energy Discharges 1 | . 1 . Data Loss (minor) 1 | . 1 . Data Loss (major) 4 | . 4 . Overload Shots . | . . . Overflow Damage 63 | . 40 23 Projectiles . | . . . Explosions 63 | . 40 23 Melee . | . . . Knockbacks . | . . . Impact . | . . . Kinetic . | . . . Secondary . | . . . Self-Inflicted Damage 153 | . 65 88 Shots 6 | . 4 2 Rammed 1 | . 1 . Targets Rammed 1 | . 1 . Kicked . | . . . Crushed . | . . . Highest Temperature 113 | 70 113 33 Average Temperature 20 | 36 18 14 Received Heat Transfer 309 | . 126 183 Siege Activations . | . . . Robots Corrupted . | . . . Combat Hostiles . | . . . Parts Fried . | . . . Impact Corruptions . | . . . Robots Melted . | . . . Combat Hostiles . | . . . Parts Melted 1 | 1 . . Heat Transferred 370 | 333 . 37 Parts Sabotaged . | . . . Parts Stolen . | . . . Parts Stripped . | . . . Power Chain Reactions . | . . . Alert | -11 -10 -10 ------- Run | Yrd Mat Min Peak Influence 349 | 5 349 172 Initial 19 | . 3 19 Average 145 | . 152 136 Maximum Alert Level 1 | . 1 . Low Security (%) 72 | 100 68 100 Level 1 27 | . 31 . Level 2 . | . . . Level 3 . | . . . Level 4 . | . . . Level 5 . | . . . High Security . | . . . Max Security . | . . . Squads Dispatched 2 | . 2 . Investigation 1 | . 1 . Extermination . | . . . Reinforcement 1 | . 1 . Assault . | . . . Garrison . | . . . Intercept . | . . . Searches Triggered . | . . . Construction Impeded . | . . . Haulers Reinforced . | . . . Active Scanning Responses . | . . . Cargo Convoy Interrupts . | . . . Stealth | -11 -10 -10 --------- Run | Yrd Mat Min Distress Signals 1 | . 1 . Communications Jammed . | . . . Distress Signals . | . . . Times Spotted 24 | . 17 7 Peak Tracking Total 3 | . 3 3 Tactical Retreats . | . . . Traps | -11 -10 -10 ------- Run | Yrd Mat Min Traps Triggered 6 | . 6 . Indirectly . | . . . Trap Hack Attempts . | . . . Triggered . | . . . Disarmed . | . . . Reprogrammed . | . . . Reused . | . . . Traps Extracted . | . . . Installed . | . . . Triggered . | . . . Machines | -11 -10 -10 ---------- Run | Yrd Mat Min Machines Disabled 5 | . 5 . Max in Single Turn 2 | . 2 . Machines Repaired . | . . . Machines Dismantled . | . . . Machines Sabotaged . | . . . Overloaded Fab Kills . | . . . Hacking | -11 -10 -10 --------- Run | Yrd Mat Min Machines Accessed . | . . . Terminals . | . . . Fabricators . | . . . Repair Stations . | . . . Recycling Units . | . . . Scanalyzers . | . . . Garrison Access . | . . . Total Hacks . | . . . Successful . | . . . Failed . | . . . Catastrophic . | . . . Database Lockouts . | . . . Manual . | . . . Terminals . | . . . Fabricators . | . . . Repair Stations . | . . . Recycling Units . | . . . Scanalyzers . | . . . Garrison Access . | . . . Terminal Hacks . | . . . Fabricator Hacks . | . . . Repair Station Hacks . | . . . Recycling Unit Hacks . | . . . Scanalyzer . | . . . Garrison Access Hacks . | . . . Unauthorized Hacks . | . . . Terminals . | . . . Fabricators . | . . . Repair Stations . | . . . Recycling Units . | . . . Scanalyzers . | . . . Garrison Access . | . . . Data Cores Recovered . | . . . Used . | . . . Hacking Detections . | . . . Full Trace Events . | . . . Feedback Events . | . . . Feedback Blocked . | . . . Robot Schematics Acquired . | . . . Robots Built . | . . . Authchips . | . . . Time . | . . . Total Robot Build Rating . | . . . Part Schematics Acquired . | . . . Parts Built . | . . . Authchips . | . . . Time . | . . . Total Part Build Rating . | . . . Parts Repaired . | . . . Time . | . . . Parts Recycled . | . . . Recycled Matter . | . . . Retrieved Matter . | . . . Retrieved Components . | . . . Parts Scanalyzed . | . . . Part Schematics Acquired . | . . . Parts Damaged . | . . . Bothacking | -11 -10 -10 ------------ Run | Yrd Mat Min Used RIF Installer . | . . . Robots Hacked . | . . . Non-combat . | . . . Combat . | . . . Robot Hacks Applied . | . . . Relay Couplers Released . | . . . Fabnet Peak Effective % . | . . . Robots Rewired . | . . . Allies Hacked . | . . . Hacks Repelled . | . . . Allies | -11 -10 -10 -------- Run | Yrd Mat Min Total Allies . | . . . Largest Group . | . . . Highest-Rated Group . | . . . Highest-Rated Ally . | . . . Total Orders . | . . . Ally Attacks . | . . . Total Damage . | . . . Kills . | . . . Allies Corrupted . | . . . Allies Melted . | . . . Intel | -11 -10 -10 ------- Run | Yrd Mat Min Robot Analysis Total . | . . . Derelict Logs Recovered . | . . . Drone Launches . | . . . Drone Recoveries . | . . . Exploration | -11 -10 -10 ------------- Run | Yrd Mat Min Turns Passed 3287 | 124 2815 348 Spaces Moved 1647 | 65 1475 107 Core 263 | 3 164 96 Treads 1384 | 62 1311 11 Legs . | . . . Wheels . | . . . Hover . | . . . Flight . | . . . Fastest Speed 50 | 50 160 160 Average Speed 184 | 154 180 270 Slowest Speed 350 | 160 300 350 Overloaded Moves . | . . . Propulsion Burnouts . | . . . Robots Hopped . | . . . Cave-ins Triggered . | . . . Exploration Rate (%) 44 | 6 99 28 Regions Visited 2 Branch Regions 1 Pre-discovered Areas . | . . . Known Exits Taken 1 | . 1 . Unknown Exits Taken 1 | 1 . . Scrap Searched . | . . . Spaces Dug 2 | . 2 . Terrain Destroyed 288 | . 210 78 Melee . | . . . Projectile 2 | . 2 . AOE 286 | . 208 78 Terrain Rammed . | . . . Walls Destroyed . | . . . Machines Disabled . | . . . Actions | -11 -10 -10 --------- Run | Yrd Mat Min Total 1776 | 78 1552 146 Wait 17 | . . 17 Move 1645 | 64 1474 107 Hop . | . . . Pick Up 12 | 1 10 1 Fast Attach 9 | 6 3 . Attach 9 | . 5 4 Detach 1 | . . 1 Swap 7 | . 7 . Drop 2 | . 2 . Fire 73 | 7 50 16 Melee . | . . . Ram . | . . . Kick . | . . . Crush 1 | . 1 . Escape Stasis . | . . . Rewire . | . . . Trap . | . . . Miscellaneous . | . . . Route ------- -11/Scrapyard -10/Materials (discovered 6 exits: *Mat x3 / *Min x2 / [*Sub]) -10/Mines (discovered 2 exits: *Mat x2) History --------- Turn | Location | Event 8 | -11/Scrapyard | Discovered new exit (range 15) 125 | -11/Scrapyard | Entered Materials 262 | -10/Materials | Discovered new exit (range 6) 314 | -10/Materials | Build established: Mutant 339 | -10/Materials | Discovered new exit (range 16) 503 | -10/Materials | Discovered new exit (range 12) 1297 | -10/Materials | Identified exit to Mines 1350 | -10/Materials | Discovered new exit (range 16) 1350 | -10/Materials | Discovered exit to Mines (range 6) 1440 | -10/Materials | Core integrity fell below 50% 2480 | -10/Materials | Discovered new exit (range 8) 2940 | -10/Materials | Entered Mines 2942 | -10/Mines | Core integrity fell below 20% 2987 | -10/Mines | Met a Derelict bent on vengeance 2999 | -10/Mines | Lost 3 parts (1n2w) 3011 | -10/Mines | Discovered new exit (range 5) 3026 | -10/Mines | Identified exit to Materials 3134 | -10/Mines | Discovered exit to Materials (range 14) 3239 | -10/Mines | Excavation squad dispatched 3239 | -10/Mines | A large section of the Mines collapsed 3288 | -10/Mines | Destroyed by G-34 Mercenary with Small Laser Last Messages --------------- 03151_ R-06 Scavenger collects Aluminum Leg. 03153_ K-01 Serf collects debris. 03155_ Acquired 41 matter. 03156_ R-06 Scavenger collects Aluminum Leg. 03157_ K-01 Serf collects debris. 03168_ Destroyed Tractor Beam. 03239_ R-06 Scavenger crushed by falling debris. 03239_ R-06 Scavenger system corrupted by crushing effect. 03239_ Scrap crushed. 03239_ K-01 Serf crushed by falling debris. 03239_ K-01 Serf destroyed. 03239_ Wheel crushed. 03239_ ALERT: Suspicious cave-in, suspected derelict activity in mines. Dispatching escorted excavation squad. 03239_ R-06 Scavenger system terminally corrupted. 03242_ Acquired 18 matter. 03283_ T-07 Excavator is excavating. 03285_ Ion Engine destroyed. 03287_ Assault Rifle destroyed. 03288_ T-07 Excavator is excavating. Map ----- +----------------------------------------------------+ | ?????????????????????????????????????????????????? | | ?????????????????????????????????????????????????? | | ?????????????????????????????????????????????????? | | ?????????????????????????????????????????????????? | | ?????????????????????????????????????????????##??? | | ????????????????????????????????????????????# ??? | | ??????????????????????????????????????????## ??? | | ?????????????????????????????????????????? ??? | | ?????????????????????????????????????????? ???? | | ?????????????????????????????????????????? < ????? | | ?????????????????????????????????????????? #????? | | ?????????????????????????????????????????? #????? | | ????????????????????????????????????###### $###??? | | ????????????????????????????????????# # ##?? | | ???????????????????????????????????## #?? | | ?????????????????????????#?????????# [ #?? | | ????????????????????????? ?????????# #?? | | ????????????????????????? ?????????## ##?? | | ????????????????????????# #??????### ##??? | | ????????????????????????# #??##### ##???? | | ????????????????????????# #??# #????? | | ????????????????????????# #### #????? | | ????????????????????????# ## ## ##????? | | ????????????????????????#$## #### #?????? | | ????????????# = ########### #??# #?????? | | ????????????# # @ g #### #?????? | | ?????????????# # t ; g g #?????? | | ???????????????# ############ ##????? | | ???????????????##???????????????# ##???? | | ????????????????????????????????# ## ##??? | | ????????????????????????????????## ### #??? | | ?????????????????????????????????## #?# #??? | | ??????????????????????????????????# ## ##?# | | ??????????????????????????????????# ## ## | | ??????????????????????????????????## #### | | ???????????????????????????????????####??# | | ????????????????????????????????????????## | | ???????????????????????????????????????## # | | ????????????????????????????????????#### ##### | | ???????????????????????????????????## ##???? | | ???????????????????????????????????# ##???? | | ???????????????????????????????????## #???? | | ????????????????????????????????????##### #???? | | ????????????????????????????????????????## #???? | | ?????????????????????????????????????????## #???? | | ??????????????????????????????????????????# #???? | | ??????????????????????????????????????????# #???? | | ??????????????????????????????????????????# ##### | | ??????????????????????????????????????????# ## | | ??????????????????????????????????????????# # | +----------------------------------------------------+ Best States ------------- Heat Dissipation 25 Energy Generation 10 Energy Capacity 250 Matter Stores 300 Matter Capacity 300 Sight Range 16 Terrain Scan Density 10 Evasion (%) 40 Recoil Reduction 2 Item Schematics ----------------- None Robot Schematics ------------------ None Fabricated ------------ Nothing Alien Tech Used ----------------- None Achievements -------------- None Challenges ------------ None Game ------ Seed NavigationImpulseChainsword Manual? 0 Play Time 00:19:36 Cumulative 16.9 hours Start 2024.04.17 @ 16:39:52 End 2024.04.17 @ 17:54:32 Sessions 3 Manual Loads 0 Difficulty Rogue Special Mode None Game No. 8 Rogue 1 Adventurer 0 Explorer 7 Win Type - Total 1 Types 1/0/0/0/0/0/0/0/0 Lore% 17 Gallery% 17 Achievement% 21 Wizard Run 0 Options --------- Layout 0 ASCII 0 Keyboard 0 Movement Mouse Keybinds 0 Fullscreen 1 Font 24/Terminus Map View 76x50 Zoom Use 0% Tactical HUD 1 Map Filters NONE Filters NONE Steam 1 RUN: 4b3c0f3a-351d-4ff4-ae9c-574805da5104